bitfinex/quotes_BTCUSD_20240727
["timestamp","ask_amount","ask_price","bid_price","bid_amount"]
[1722065246798,0.00825,68408.0,68405.0,1.5936129]
[1722065247103,0.00825,68408.0,68405.0,2.05676067]
[1722065247370,0.00825,68408.0,68405.0,2.04276067]
[1722065247542,0.00825,68408.0,68405.0,2.05676067]
[1722065247929,0.00825,68408.0,68405.0,1.5936129]
[1722065248124,0.00825,68408.0,68405.0,1.5796129]
[1722065248328,0.00825,68408.0,68405.0,0.3250969]
[1722065248527,0.00825,68408.0,68405.0,0.21763957]
[1722065248879,0.00825,68408.0,68405.0,0.41478734]
[1722065249084,0.00825,68408.0,68405.0,0.56097534]
[1722065249289,0.00825,68408.0,68405.0,0.57497534]
[1722065249492,0.00825,68408.0,68405.0,1.19572734]
[1722065249705,0.00825,68408.0,68405.0,1.47410334]
[1722065249915,0.00825,68408.0,68405.0,1.48810334]
[1722065250043,0.00825,68408.0,68405.0,1.49910334]
[1722065250244,0.00825,68408.0,68405.0,1.48510334]
[1722065250458,0.00825,68408.0,68405.0,1.47410334]
[1722065250647,0.00825,68408.0,68405.0,1.42410334]
[1722065250852,0.00825,68408.0,68405.0,1.43810334]
[1722065251197,0.00825,68408.0,68405.0,1.48810334]
[1722065251402,0.00825,68408.0,68405.0,1.47410334]
[1722065251555,0.00825,68408.0,68405.0,1.48810334]
[1722065252207,0.00825,68408.0,68405.0,1.43810334]
[1722065252408,0.00825,68408.0,68405.0,1.15972734]
[1722065253009,0.00825,68408.0,68405.0,1.17372734]
[1722065253355,0.0155705,68406.0,68405.0,0.83935134]
[1722065253552,0.0155705,68406.0,68405.0,0.86735134]
[1722065253989,0.0155705,68406.0,68405.0,1.15972734]
[1722065254196,0.0155705,68406.0,68405.0,2.09740334]
[1722065254601,0.00701957,68406.0,68405.0,2.22985932]
[1722065254862,0.00701957,68406.0,68405.0,2.21585932]
[1722065255232,0.00701957,68406.0,68405.0,2.21885932]
[1722065255667,0.00701957,68406.0,68405.0,2.20485932]
[1722065255871,0.00701957,68406.0,68405.0,2.21885932]
[1722065256077,0.00701957,68406.0,68405.0,2.48977934]
[1722065256261,0.00701957,68406.0,68405.0,2.59723139]
[1722065256466,0.00701957,68406.0,68405.0,2.61123139]
[1722065256610,0.00701957,68406.0,68405.0,2.65652243]
[1722065257013,0.00701957,68406.0,68405.0,2.67052243]
[1722065257618,0.00701957,68406.0,68405.0,2.97189843]
[1722065257836,0.00825,68408.0,68407.0,1.86817877]
[1722065258051,0.00825,68408.0,68407.0,2.72141939]
[1722065258712,0.00825,68408.0,68407.0,2.42905239]
[1722065258914,0.00825,68408.0,68407.0,2.38331122]
[1722065259408,0.03118163,68408.0,68407.0,2.38329822]
[1722065259606,0.03118163,68408.0,68407.0,2.68966522]
[1722065259774,0.03118163,68408.0,68407.0,2.47849822]
[1722065259975,0.03118163,68408.0,68407.0,2.49249822]
[1722065260727,0.03118163,68408.0,68407.0,2.47849822]
[1722065261169,0.03118163,68408.0,68407.0,2.53823939]
[1722065261578,0.03118163,68408.0,68407.0,2.4491096]
[1722065261764,0.03118163,68408.0,68407.0,2.38936843]
[1722065262128,0.03118163,68408.0,68407.0,2.08600143]
[1722065262330,0.03118163,68408.0,68407.0,2.07200143]
[1722065262531,0.03122163,68408.0,68407.0,2.14633034]
[1722065262740,0.03122163,68408.0,68407.0,2.03177177]
[1722065262946,0.03122163,68408.0,68407.0,1.73940477]
[1722065263351,0.03122163,68408.0,68407.0,1.75340477]
[1722065263630,0.00829,68408.0,68407.0,1.73940477]
[1722065263750,0.00829,68408.0,68407.0,2.00540477]
[1722065263958,0.00829,68408.0,68407.0,2.00340477]
[1722065264818,0.00829,68408.0,68407.0,2.29577177]
[1722065265068,0.00829,68408.0,68407.0,1.75340477]
[1722065265764,0.00829,68408.0,68407.0,1.67220477]
[1722065265962,0.00829,68408.0,68407.0,1.33961557]
[1722065266096,0.00829,68408.0,68407.0,1.46106778]
[1722065266303,0.00829,68408.0,68407.0,1.92221555]
[1722065266502,0.03122395,68408.0,68407.0,2.21458255]
[1722065266749,0.03122395,68408.0,68407.0,2.39675331]
[1722065267271,0.03122395,68408.0,68407.0,2.39875331]
[1722065267629,0.03122395,68408.0,68407.0,1.93560554]
[1722065267829,0.03122395,68408.0,68407.0,2.38475331]
[1722065268649,0.03122395,68408.0,68407.0,2.37075331]
[1722065268860,0.03122395,68408.0,68407.0,2.38475331]
[1722065269283,0.03122395,68408.0,68407.0,2.06713034]
[1722065269492,0.03122395,68408.0,68407.0,2.50953906]
[1722065269680,0.01297832,68408.0,68407.0,2.83890606]
[1722065269978,0.01297832,68408.0,68407.0,2.88679434]
[1722065270156,0.01297832,68408.0,68407.0,2.62416851]
[1722065270360,0.01297832,68408.0,68407.0,2.56942734]
[1722065270583,0.01297832,68408.0,68407.0,2.52153906]
[1722065270787,0.01297832,68408.0,68407.0,2.50753906]
[1722065271303,0.01297832,68408.0,68407.0,2.53553906]
[1722065271507,0.01297832,68408.0,68407.0,2.53753906]
[1722065271726,0.01297832,68408.0,68407.0,2.52153906]
[1722065271925,0.01297832,68408.0,68407.0,2.53553906]
[1722065272438,0.01297832,68408.0,68407.0,1.78202429]
[1722065272655,0.01297832,68408.0,68407.0,1.47841557]
[1722065272808,0.01297832,68408.0,68407.0,2.24317136]
[1722065273006,0.01297832,68408.0,68407.0,2.53553836]
[1722065273459,0.01297832,68408.0,68407.0,2.52153836]
[1722065273656,0.01297832,68408.0,68407.0,2.53553836]
[1722065274065,0.00017816,68410.0,68409.0,0.55052777]
[1722065274217,0.00017816,68410.0,68409.0,1.25057436]
[1722065274417,0.00017816,68410.0,68409.0,1.83529236]
[1722065275001,0.00017816,68410.0,68409.0,2.12765136]
[1722065275610,0.00017816,68410.0,68409.0,2.14165136]
[1722065275812,0.00017816,68410.0,68409.0,1.89165136]
[1722065275979,0.00017816,68410.0,68409.0,2.00736814]
[1722065276186,0.00017816,68410.0,68409.0,1.72837516]
[1722065276383,0.00017816,68410.0,68409.0,2.15563465]
[1722065276945,0.00017816,68410.0,68409.0,1.69448688]
[1722065277121,0.00017816,68410.0,68409.0,1.45001616]
[1722065277369,0.00017816,68410.0,68409.0,1.40212788]
[1722065277818,0.02310999,68410.0,68409.0,1.45297122]
[1722065278024,0.00017816,68410.0,68409.0,0.88322199]
[1722065278228,0.00017816,68410.0,68409.0,0.65022386]
[1722065278437,0.00017816,68410.0,68409.0,1.08876186]
[1722065278638,0.00017816,68410.0,68409.0,0.55022386]
[1722065279052,0.14635516,68410.0,68409.0,0.55022386]
[1722065279256,0.14635516,68410.0,68409.0,0.52084386]
[1722065279465,0.43870916,68410.0,68409.0,0.52087202]
[1722065279876,0.43870916,68410.0,68409.0,0.52087517]
[1722065280292,1.08551716,68410.0,68409.0,0.52087517]
[1722065280891,1.08551716,68410.0,68409.0,0.52087726]
[1722065281096,1.08551716,68410.0,68409.0,0.30972949]
[1722065281305,1.08551716,68410.0,68409.0,0.50687726]
[1722065281871,1.08551716,68410.0,68409.0,0.39940734]
[1722065282063,1.08551716,68410.0,68409.0,0.30972977]
[1722065282279,1.08551716,68410.0,68409.0,0.35661797]
[1722065282607,1.08551716,68410.0,68409.0,0.37061797]
[1722065282811,1.16711716,68410.0,68409.0,0.37061797]
[1722065283014,1.16711716,68410.0,68409.0,0.038]
[1722065283209,1.16711716,68410.0,68409.0,0.24914777]
[1722065283411,1.16711716,68410.0,68409.0,0.19921578]
[1722065283655,1.16711716,68410.0,68409.0,0.24914777]
[1722065283859,1.16711716,68410.0,68409.0,0.038]
[1722065284059,1.16711716,68410.0,68409.0,0.24914777]
[1722065284268,0.87476316,68410.0,68409.0,0.24914777]
[1722065284445,1.16711716,68410.0,68409.0,0.24914777]
[1722065284643,1.16711716,68410.0,68409.0,0.23514777]
[1722065285073,1.16711716,68410.0,68409.0,0.24914777]
[1722065285295,1.16711716,68410.0,68409.0,0.23514777]
[1722065285497,1.19005394,68410.0,68409.0,0.024]
[1722065285700,1.19005394,68410.0,68409.0,0.24814777]
[1722065285903,1.19005394,68410.0,68409.0,0.037]
[1722065286274,1.19005394,68410.0,68409.0,0.24814777]
[1722065286275,0.89769994,68410.0,68409.0,0.24814777]
[1722065286481,0.89769994,68410.0,68409.0,1.0084089]
[1722065286482,0.02311494,68410.0,68409.0,1.0084089]
[1722065286680,0.02311494,68410.0,68409.0,1.5507679]
[1722065287317,0.02311494,68410.0,68409.0,1.3007679]
[1722065288083,0.02311494,68410.0,68409.0,0.9584089]
[1722065288590,0.02311494,68410.0,68409.0,0.66603961]
[1722065288780,0.02311494,68410.0,68409.0,0.51986061]
[1722065289148,0.02311494,68410.0,68409.0,0.51986813]
[1722065289149,0.17001494,68410.0,68409.0,0.51986813]
[1722065289535,0.17001494,68410.0,68409.0,0.39840734]
[1722065289536,0.17005494,68410.0,68409.0,0.39840734]
[1722065290365,0.31623194,68410.0,68409.0,0.39840734]
[1722065290786,0.17005494,68410.0,68409.0,0.39840734]
[1722065291190,0.31623194,68410.0,68409.0,0.39840734]
[1722065291714,0.17005494,68410.0,68409.0,0.39840734]
[1722065292439,0.08845494,68410.0,68409.0,0.54458634]
[1722065292674,0.08845494,68410.0,68409.0,0.83694534]
[1722065293021,0.02315494,68410.0,68409.0,0.83694534]
[1722065293259,0.02315494,68410.0,68409.0,0.54458634]
[1722065293801,0.02315494,68410.0,68409.0,0.83694534]
[1722065294177,0.02315494,68410.0,68409.0,0.39840734]
[1722065294382,0.02315494,68410.0,68409.0,0.54458634]
[1722065294957,0.02315494,68410.0,68409.0,0.39840734]
[1722065295127,0.02315494,68410.0,68409.0,0.54458634]
[1722065295324,0.00021816,68410.0,68409.0,0.54458634]
[1722065296345,0.00021816,68410.0,68409.0,1.12930434]
[1722065297409,0.58492616,68410.0,68409.0,0.24814777]
[1722065297636,0.43874916,68410.0,68409.0,0.24814777]
[1722065297855,0.43874916,68410.0,68409.0,0.23514777]
[1722065298259,0.43874916,68410.0,68409.0,0.24814777]
[1722065298484,0.43874916,68410.0,68409.0,0.23414777]
[1722065298662,0.43874916,68410.0,68409.0,0.22114777]
[1722065298885,0.73110316,68410.0,68409.0,0.23514777]
[1722065299083,1.17035716,68410.0,68409.0,0.23514777]
[1722065299289,1.27977952,68410.0,68409.0,0.024]
[1722065299489,1.17035716,68410.0,68409.0,0.038913]
[1722065299702,1.17118716,68410.0,68409.0,0.038913]
[1722065299950,0.00104816,68410.0,68409.0,0.83885834]
[1722065300246,0.00104816,68410.0,68409.0,0.40032034]
[1722065300481,0.00104816,68410.0,68409.0,0.38632034]
[1722065300957,0.00104816,68410.0,68409.0,0.37232034]
[1722065301420,0.00204816,68410.0,68409.0,0.51949934]
[1722065301824,0.00104816,68410.0,68409.0,0.51849934]
[1722065302001,0.00104816,68410.0,68409.0,0.81085834]
[1722065302227,0.00104816,68410.0,68409.0,0.81985834]
[1722065302415,0.0259839,68410.0,68409.0,0.82085834]
[1722065302774,0.00104816,68410.0,68409.0,1.39557634]
[1722065303200,0.00104816,68410.0,68409.0,1.40957634]
[1722065303838,0.00104816,68410.0,68409.0,1.39557634]
[1722065304429,0.00104816,68410.0,68409.0,1.40957634]
[1722065304610,0.00104816,68410.0,68409.0,1.42057634]
[1722065305252,0.00104816,68410.0,68409.0,1.40957634]
[1722065305686,0.00104816,68410.0,68409.0,1.42257634]
[1722065306108,0.00104816,68410.0,68409.0,1.13021734]
[1722065306315,0.00104816,68410.0,68409.0,0.83785834]
[1722065306737,0.06454816,68410.0,68409.0,0.39932034]
[1722065306943,0.06454816,68410.0,68409.0,0.54549934]
[1722065307546,0.06454816,68410.0,68409.0,0.39523977]
[1722065307943,0.06454816,68410.0,68409.0,0.24906077]
[1722065308213,0.08748356,68410.0,68409.0,0.24906077]
[1722065308612,0.23366056,68410.0,68409.0,0.24906077]
[1722065308833,0.08748356,68410.0,68409.0,0.24906077]
[1722065309816,0.23366056,68410.0,68409.0,0.24906077]
[1722065311242,0.52601456,68410.0,68409.0,0.24906077]
[1722065311680,0.81836856,68410.0,68409.0,0.037913]
[1722065311870,1.11072256,68410.0,68409.0,0.24906077]
[1722065312073,1.15449651,68410.0,68409.0,0.24906077]
[1722065312293,1.11072256,68410.0,68409.0,0.037913]
[1722065312694,1.11072256,68410.0,68409.0,0.023913]
[1722065313114,1.15344809,68410.0,68409.0,0.035913]
[1722065313326,0.13020909,68410.0,68409.0,0.23406077]
[1722065313530,0.04482719,68410.0,68409.0,0.24306077]
[1722065313724,0.04482719,68410.0,68409.0,0.38923977]
[1722065313879,0.00104816,68410.0,68409.0,0.24306077]
[1722065314569,0.00104816,68410.0,68409.0,0.38923977]
[1722065314698,0.00104816,68410.0,68409.0,0.24306077]
[1722065315480,0.00104816,68410.0,68409.0,0.38923977]
[1722065315656,0.04482884,68410.0,68409.0,0.24306077]
[1722065315857,0.04482884,68410.0,68409.0,0.38923977]
[1722065316055,0.06776547,68410.0,68409.0,0.68159877]
[1722065316281,0.06776547,68410.0,68409.0,0.38923977]
[1722065316692,0.06776547,68410.0,68409.0,0.68159877]
[1722065316901,0.02398479,68410.0,68409.0,1.12421734]
[1722065317100,0.81836979,68410.0,68409.0,0.24306077]
[1722065317314,0.86215047,68410.0,68409.0,0.24306077]
[1722065317499,1.11072379,68410.0,68409.0,0.24306077]
[1722065317837,1.19192379,68410.0,68409.0,0.24306077]
[1722065318014,1.19192379,68410.0,68409.0,0.031913]
[1722065318238,0.64813869,68410.0,68409.0,0.24306077]
[1722065318399,0.6948077,68410.0,68409.0,0.24306077]
[1722065318659,0.16868479,68410.0,68409.0,0.24306077]
[1722065318957,0.23438306,68410.0,68409.0,0.23106077]
[1722065319099,0.38056006,68410.0,68409.0,0.23106077]
[1722065319299,0.38056006,68410.0,68409.0,0.22206077]
[1722065319504,0.67291406,68410.0,68409.0,0.22206077]
[1722065319874,0.38056006,68410.0,68409.0,0.22406077]
[1722065320458,0.08748479,68410.0,68409.0,0.22906077]
[1722065320981,0.08748479,68410.0,68409.0,0.37523977]
[1722065321189,0.08748479,68410.0,68409.0,0.22906077]
[1722065321329,0.08748479,68410.0,68409.0,0.37523977]
[1722065321531,0.11158249,68410.0,68409.0,0.81785834]
[1722065322029,0.02398479,68410.0,68409.0,0.81785834]
[1722065322255,0.11163355,68410.0,68409.0,0.81785834]
[1722065322451,0.00104816,68410.0,68409.0,0.81785834]
[1722065323013,0.00104816,68410.0,68409.0,0.60671057]
[1722065323221,0.00104816,68410.0,68409.0,0.81785834]
[1722065323419,0.11060912,68410.0,68409.0,0.81785834]
[1722065324039,0.11060912,68410.0,68409.0,0.52549934]
[1722065324261,0.11060912,68410.0,68409.0,0.37932034]
[1722065324695,0.11060912,68410.0,68409.0,0.81785834]
[1722065324924,0.00104816,68410.0,68409.0,1.11021734]
[1722065325306,0.00104816,68410.0,68409.0,0.81785834]
[1722065325707,0.11169483,68410.0,68409.0,0.81785834]
[1722065325885,0.08875814,68410.0,68409.0,0.81785834]
[1722065326090,0.00104816,68410.0,68409.0,0.81785834]
[1722065328847,0.00104816,68410.0,68409.0,0.52549934]
[1722065329063,0.08875908,68410.0,68409.0,1.11021734]
[1722065329178,0.0668285,68410.0,68409.0,0.81785834]
[1722065329414,0.06682932,68410.0,68409.0,0.81785834]
[1722065329723,0.02398485,68410.0,68409.0,0.81785834]
[1722065330143,0.08976601,68410.0,68409.0,0.81785834]
[1722065330346,0.02398485,68410.0,68409.0,0.81785834]
[1722065330635,0.02398485,68410.0,68409.0,1.11021734]
[1722065331992,0.02398485,68410.0,68409.0,1.40257634]
[1722065332195,0.02398485,68410.0,68409.0,1.11021734]
[1722065332398,0.02398485,68410.0,68409.0,1.40257634]
[1722065332595,0.02398485,68410.0,68409.0,1.11021734]
[1722065333625,0.00104816,68410.0,68409.0,1.40257634]
[1722065333800,0.00104816,68410.0,68409.0,1.11021734]
[1722065334003,0.00104816,68410.0,68409.0,1.17181734]
[1722065334926,0.00104816,68410.0,68409.0,1.46417634]
[1722065335326,0.00104816,68410.0,68409.0,1.17181734]
[1722065335918,0.00104816,68410.0,68409.0,1.54017634]
[1722065336879,0.02398325,68410.0,68409.0,1.54017634]
[1722065337075,0.02398325,68410.0,68409.0,1.53817634]
[1722065337517,0.02398325,68410.0,68409.0,1.25681734]
[1722065337843,0.02398325,68410.0,68409.0,1.54917634]
[1722065338665,0.02398325,68410.0,68409.0,1.54417634]
[1722065339071,0.02398325,68410.0,68409.0,1.54717634]
[1722065339270,0.02398325,68410.0,68409.0,1.19121734]
[1722065339655,0.02398325,68410.0,68409.0,0.82285834]
[1722065340264,0.02398325,68410.0,68409.0,0.54449934]
[1722065341621,0.02398325,68410.0,68409.0,0.24806077]
[1722065341622,0.17016025,68410.0,68409.0,0.24806077]
[1722065341824,0.23592737,68410.0,68409.0,0.24806077]
[1722065342051,0.25785575,68410.0,68409.0,0.24806077]
[1722065342254,0.17016025,68410.0,68409.0,0.24806077]
[1722065342463,0.14722516,68410.0,68409.0,0.24806077]
[1722065342801,0.43957916,68410.0,68409.0,0.24806077]
[1722065342999,0.14722516,68410.0,68409.0,0.24806077]
[1722065343407,0.00104816,68410.0,68409.0,0.24806077]
[1722065343616,0.14722516,68410.0,68409.0,0.24806077]
[1722065344169,0.00104816,68410.0,68409.0,0.24806077]
[1722065344334,0.14722516,68410.0,68409.0,0.24806077]
[1722065344742,0.00104816,68410.0,68409.0,0.24806077]
[1722065345161,0.14722516,68410.0,68409.0,0.24806077]
[1722065345363,0.14722516,68410.0,68409.0,0.026913]
[1722065345364,0.69479762,68410.0,68409.0,0.026913]
[1722065345564,0.91821368,68410.0,68409.0,0.026913]
[1722065345803,1.23350554,68410.0,68409.0,0.07684499]
[1722065346012,1.21056768,68410.0,68409.0,0.07684499]
[1722065346252,1.21056768,68410.0,68409.0,0.06484499]
[1722065346457,1.21056768,68410.0,68409.0,0.05284499]
[1722065346612,1.21056768,68410.0,68409.0,0.002913]
[1722065346814,1.21056768,68410.0,68409.0,0.007913]
[1722065347804,1.84843958,68410.0,68409.0,0.007913]
[1722065347914,1.7047059,68410.0,68409.0,0.007913]
[1722065348340,1.85336024,68410.0,68409.0,0.007913]
[1722065348543,1.70537807,68410.0,68409.0,0.007913]
[1722065348764,1.78628124,68410.0,68409.0,0.007913]
[1722065348943,1.78628124,68410.0,68409.0,0.005913]
[1722065349143,1.78628124,68410.0,68409.0,0.000913]
[1722065349144,1.71018352,68410.0,68409.0,0.000913]
[1722065349347,1.79028127,68410.0,68409.0,0.000913]
[1722065349559,1.71218352,68410.0,68409.0,0.000913]
[1722065350214,1.73512543,68410.0,68409.0,0.000913]
[1722065351807,1.65666821,68410.0,68409.0,0.000913]
[1722065351965,1.63366429,68410.0,68409.0,0.000913]
[1722065354829,1.61072238,68410.0,68409.0,0.000913]
[1722065355219,1.6895066,68410.0,68409.0,0.000913]
[1722065355420,1.7125066,68410.0,68409.0,0.000913]
[1722065355643,1.86276617,68410.0,68409.0,0.000913]
[1722065356180,1.7125066,68410.0,68409.0,0.000913]
[1722065356779,1.7711076,68410.0,68409.0,0.000913]
[1722065357297,1.73232338,68410.0,68409.0,0.000913]
[1722065357634,1.7711076,68410.0,68409.0,0.000913]
[1722065358134,1.79404913,68410.0,68409.0,0.000913]
[1722065358474,1.68784216,68410.0,68409.0,0.000913]
[1722065358702,1.73233764,68410.0,68409.0,0.000913]
[1722065359656,1.77112186,68410.0,68409.0,0.000913]
[1722065359853,1.73233764,68410.0,68409.0,0.000913]
[1722065361689,1.75527909,68410.0,68409.0,0.000913]
[1722065361892,1.75521669,68410.0,68409.0,0.000913]
[1722065362479,1.88645317,68410.0,68409.0,0.000913]
[1722065363088,1.79400091,68410.0,68409.0,0.000913]
[1722065363283,1.94426048,68410.0,68409.0,0.000913]
[1722065363704,1.79400091,68410.0,68409.0,0.000913]
[1722065364272,1.92521946,68410.0,68409.0,0.000913]
[1722065364700,1.90227801,68410.0,68409.0,0.000913]
[1722065365298,1.90205804,68410.0,68409.0,0.000913]
[1722065367263,2.19441204,68410.0,68409.0,0.000913]
[1722065367688,2.34467161,68410.0,68409.0,0.000913]
[1722065367899,2.5981776,68410.0,68409.0,0.000913]
[1722065368121,1.92004722,68408.0,68407.0,0.0970812]
[1722065368340,2.48980454,68408.0,68407.0,0.02121306]
[1722065368612,2.4927448,68408.0,68407.0,0.02121306]
[1722065368811,2.5157448,68408.0,68407.0,0.02121306]
[1722065369440,2.9623078,68408.0,68407.0,8.6e-07]
[1722065370102,2.9653078,68408.0,68407.0,0.00100086]
[1722065370325,2.9653078,68408.0,68407.0,0.00200086]
[1722065370326,2.9703078,68408.0,68407.0,0.00200086]
[1722065370530,2.9703078,68408.0,68401.0,0.000913]
[1722065370531,2.51244222,68402.0,68401.0,0.000913]
[1722065370738,2.9951768,68402.0,68401.0,0.000913]
[1722065370977,1.085599,68386.0,68385.0,0.01]
[1722065371216,1.44537641,68386.0,68385.0,0.01]
[1722065371859,1.401056,68386.0,68385.0,0.01]
[1722065372089,1.44513815,68386.0,68385.0,0.01]
[1722065372344,1.44513815,68386.0,68385.0,0.00959981]
[1722065372560,1.85718194,68386.0,68385.0,0.00959981]
[1722065373203,1.72987123,68386.0,68385.0,0.00959981]
[1722065373408,1.816109,68386.0,68385.0,0.00959981]
[1722065373628,1.817109,68386.0,68385.0,0.00959981]
[1722065373825,1.817109,68386.0,68385.0,0.01059981]
[1722065374241,1.70792237,68386.0,68385.0,0.01059981]
[1722065374648,1.85818194,68386.0,68385.0,0.01059981]
[1722065375267,1.70792237,68386.0,68385.0,0.01059981]
[1722065375480,1.70832255,68386.0,68385.0,0.01059981]
[1722065375677,1.70792237,68386.0,68385.0,0.01059981]
[1722065376347,1.77338675,68386.0,68385.0,0.01059981]
[1722065376551,1.78267824,68386.0,68385.0,0.01059981]
[1722065376773,1.93293781,68386.0,68385.0,0.01059981]
[1722065377383,1.86747343,68386.0,68385.0,0.01059981]
[1722065377589,1.67842964,68386.0,68385.0,0.01059981]
[1722065377800,1.20097264,68386.0,68385.0,0.01059981]
[1722065378012,1.19168115,68386.0,68385.0,0.01059981]
[1722065378238,1.147599,68386.0,68385.0,0.01059981]
[1722065378452,0.832142,68386.0,68385.0,0.23174758]
[1722065378674,0.832142,68386.0,68385.0,0.02059981]
[1722065378905,1.124599,68386.0,68385.0,0.23174758]
[1722065379162,0.832142,68386.0,68385.0,0.23174758]
[1722065381176,0.85509038,68386.0,68385.0,0.23174758]
[1722065382199,1.14754738,68386.0,68385.0,0.23174758]
[1722065382404,0.85509038,68386.0,68385.0,0.23174758]
[1722065383512,1.14754738,68386.0,68385.0,0.23174758]
[1722065383770,0.85509038,68386.0,68385.0,0.23174758]
[1722065384234,0.46263338,68386.0,68385.0,0.23174758]
[1722065384451,0.75509038,68386.0,68385.0,0.23174758]
[1722065384675,0.02394838,68386.0,68385.0,0.81733858]
[1722065384887,0.02394838,68386.0,68385.0,0.52487758]
[1722065385098,0.02394838,68386.0,68385.0,0.37864758]
[1722065385309,0.02394838,68386.0,68385.0,0.52487758]
[1722065385534,0.02394838,68386.0,68385.0,0.81733858]
[1722065385961,0.02394838,68386.0,68385.0,1.10979958]
[1722065385962,0.02294838,68386.0,68385.0,1.10979958]
[1722065386170,0.02294838,68386.0,68385.0,0.81733858]
[1722065386389,0.02294838,68386.0,68385.0,0.81633858]
[1722065386600,0.02294838,68386.0,68385.0,0.81733858]
[1722065386820,0.02394838,68386.0,68385.0,0.96759815]
[1722065387038,0.02394838,68386.0,68385.0,0.96659815]
[1722065387255,0.058603,68403.0,68402.0,0.1569]
[1722065387474,0.00104816,68410.0,68402.0,0.1569]
[1722065387475,0.14619,68404.0,68403.0,0.01]
[1722065387638,0.292366,68408.0,68402.0,0.1469]
[1722065387639,0.146188,68405.0,68404.0,0.01]
[1722065387821,0.438564,68405.0,68404.0,0.01]
[1722065388217,0.146188,68405.0,68404.0,0.01]
[1722065388464,0.146186,68406.0,68405.0,0.01]
[1722065388664,0.438539,68409.0,68408.0,0.01]
[1722065389038,0.730899,68409.0,68408.0,0.01]
[1722065389238,0.830899,68409.0,68408.0,0.01]
[1722065390057,0.259179,68409.0,68408.0,0.011]
[1722065390276,0.463538,68409.0,68408.0,0.012]
[1722065390711,0.438538,68409.0,68408.0,0.01]
[1722065390938,0.443538,68409.0,68408.0,0.01]
[1722065391431,0.438538,68409.0,68408.0,0.22114777]
[1722065391647,0.438538,68409.0,68408.0,0.22614777]
[1722065392100,0.444538,68409.0,68408.0,0.22714777]
[1722065392328,0.444538,68409.0,68408.0,0.016]
[1722065392545,0.730897,68409.0,68408.0,0.015]
[1722065392769,0.444538,68409.0,68408.0,0.016]
[1722065392982,0.736897,68409.0,68408.0,0.011]
[1722065393217,0.730897,68409.0,68408.0,0.01]
[1722065393430,0.75883693,68409.0,68408.0,0.01]
[1722065393672,0.741897,68409.0,68408.0,0.011]
[1722065394062,0.746897,68409.0,68408.0,0.011]
[1722065394267,0.736897,68409.0,68408.0,0.011]
[1722065394476,0.444538,68409.0,68408.0,0.22214777]
[1722065394679,0.444538,68409.0,68408.0,0.30574777]
[1722065394935,0.152179,68409.0,68408.0,0.30574777]
[1722065395272,0.14722516,68410.0,68409.0,0.22114777]
[1722065395476,0.43957916,68410.0,68409.0,0.22114777]
[1722065396533,0.44057916,68410.0,68409.0,0.22114777]
[1722065397019,0.46351846,68410.0,68409.0,0.22114777]
[1722065397194,0.75587246,68410.0,68409.0,0.22214777]
[1722065397403,0.73293316,68410.0,68409.0,0.22214777]
[1722065397604,0.73293316,68410.0,68409.0,0.01]
[1722065397804,1.02528716,68410.0,68409.0,0.015]
[1722065398408,1.02428716,68410.0,68409.0,0.015]
[1722065398737,1.02428716,68410.0,68409.0,0.018]
[1722065399302,1.02428716,68410.0,68409.0,0.015]
[1722065399519,1.02528716,68410.0,68409.0,0.01]
[1722065399929,0.73293316,68410.0,68409.0,0.22114777]
[1722065400159,0.14822516,68410.0,68409.0,0.22114777]
[1722065400361,0.14822516,68410.0,68409.0,0.28744777]
[1722065400362,0.44057916,68410.0,68409.0,0.28744777]
[1722065400603,0.17116451,68410.0,68409.0,0.28744777]
[1722065400808,0.75587251,68410.0,68409.0,0.28744777]
[1722065401007,0.46351851,68410.0,68409.0,0.28744777]
[1722065401675,0.02498751,68410.0,68409.0,0.28744777]
[1722065402162,0.17116451,68410.0,68409.0,0.28744777]
[1722065402282,0.02498751,68410.0,68409.0,0.22391812]
[1722065402727,0.02498751,68410.0,68409.0,0.51627712]
[1722065402932,0.02498751,68410.0,68409.0,0.22391812]
[1722065403087,0.17101472,68410.0,68409.0,0.22391812]
[1722065403709,0.02483772,68410.0,68409.0,0.22291812]
[1722065403912,0.17101472,68410.0,68409.0,0.22291812]
[1722065404112,0.46436872,68410.0,68409.0,0.16361812]
[1722065404312,0.46336872,68410.0,68409.0,0.16361812]
[1722065404683,0.75572272,68410.0,68409.0,0.16761812]
[1722065405290,0.73278337,68410.0,68409.0,0.16761812]
[1722065406705,0.00189837,68410.0,68409.0,0.38377769]
[1722065406938,0.00189837,68410.0,68409.0,0.60675669]
[1722065407169,0.00189837,68410.0,68409.0,0.46057769]
[1722065407566,0.00189837,68410.0,68409.0,0.60675669]
[1722065408397,0.14807537,68410.0,68409.0,0.31031812]
[1722065408611,0.46336713,68410.0,68409.0,0.31031812]
[1722065408832,0.44042937,68410.0,68409.0,0.31031812]
[1722065409304,0.73278337,68410.0,68409.0,0.31031812]
[1722065410451,1.02513737,68410.0,68409.0,0.24441812]
[1722065411806,0.73278337,68410.0,68409.0,0.24441812]
[1722065412044,0.75572237,68410.0,68409.0,0.24441812]
[1722065412712,0.46336837,68410.0,68409.0,0.24441812]
[1722065413190,0.44042937,68410.0,68409.0,0.24441812]
[1722065413422,0.73278337,68410.0,68409.0,0.24441812]
[1722065415343,1.02513737,68410.0,68409.0,0.24441812]
[1722065416029,1.02513737,68410.0,68409.0,0.16761812]
[1722065416475,0.73278337,68410.0,68409.0,0.16761812]
[1722065417660,0.73939284,68410.0,68409.0,0.16761812]
[1722065418998,0.73939284,68410.0,68409.0,0.01]
[1722065419610,1.03174684,68410.0,68409.0,0.01]
[1722065420016,1.20941828,68410.0,68409.0,0.01]
[1722065420433,1.56722328,68410.0,68409.0,0.01]
[1722065420847,1.27486928,68410.0,68409.0,0.006]
[1722065421068,0.730972,68402.0,68401.0,0.15761812]
[1722065421294,0.76694344,68402.0,68401.0,0.15761812]
[1722065421517,1.06592813,68402.0,68401.0,0.15761812]
[1722065421822,1.06689016,68402.0,68401.0,0.15761812]
[1722065422599,1.06685809,68402.0,68401.0,0.15761812]
[1722065423452,1.02995669,68402.0,68401.0,0.15761812]
[1722065423642,1.03095669,68402.0,68401.0,0.15761812]
[1722065424104,1.11167805,68402.0,68401.0,0.15761812]
[1722065424240,1.06799815,68402.0,68401.0,0.15761812]
[1722065424439,1.13351801,68402.0,68401.0,0.15861812]
[1722065424843,1.1566317,68402.0,68401.0,0.15861812]
[1722065425244,1.09111184,68402.0,68401.0,0.15861812]
[1722065425658,0.79872284,68402.0,68401.0,0.15861812]
[1722065425859,0.76150912,68402.0,68401.0,0.15861812]
[1722065426266,0.73856769,68402.0,68401.0,0.15861812]
[1722065426618,0.80418361,68402.0,68401.0,0.15861812]
[1722065427488,0.73856769,68402.0,68401.0,0.05093199]
[1722065427707,1.03095669,68402.0,68401.0,0.05093199]